fUSD/lending_fUSD_20251025
["ID","MTS","AMOUNT","RATE_DAILY","PERIOD"]
[392332150,1761350874775,487.62733274,0.00012893,2]
[392332153,1761351031420,-600.0,0.00034557,2]
[392332154,1761351031430,-169.62,0.00034557,2]
[392332155,1761351031440,-150.0,0.00035014,7]
[392332156,1761351031449,-150.0,0.00035014,7]
[392332157,1761351031459,-150.0,0.00035014,7]
[392332158,1761351031468,-600.0,0.00035105,2]
[392332159,1761351031478,-600.0,0.00035653,2]
[392332160,1761351031487,-6539.0,0.00035713,2]
[392332161,1761351031496,-558.0,0.00035713,2]
[392332162,1761351031506,-3487.0,0.00035713,2]
[392332163,1761351031515,-600.0,0.00036201,2]
[392332164,1761351031525,-150.0,0.00036228,120]
[392332165,1761351031534,-200.0,0.00036494,2]
[392332166,1761351031544,-168.0,0.00036623,2]
[392332167,1761351031554,-150.0,0.00036721,120]
[392332168,1761351031563,-325.0,0.00036733,2]
[392332169,1761351031572,-600.0,0.00036749,2]
[392332170,1761351031582,-749.0,0.00036761,2]
[392332171,1761351031591,-150.0,0.00036867,2]
[392332172,1761351031600,-1195.8,0.00036867,2]
[392332173,1761351031609,-168.0,0.00036951,2]
[392332174,1761351031618,-203.41837011,0.00037,120]
[392332175,1761351031648,-46.58162989,0.00037,120]
[392332176,1761351031658,-482.19,0.00037056,120]
[392332177,1761351031667,-168.0,0.00037129,2]
[392332178,1761351031677,-162.70322538,0.000372,120]
[392332179,1761351031686,-1852.42,0.00037268,2]
[392332180,1761351031695,-600.0,0.00037297,2]
[392332181,1761351031704,-168.0,0.00037324,2]
[392332182,1761351031714,-1812.0,0.000375,2]
[392332183,1761351031724,-410.11137599,0.00037606,2]
[392332184,1761351031734,-168.52,0.00037644,2]
[392332185,1761351031743,-168.52,0.00037644,2]
[392332186,1761351031752,-1600.0,0.00037723,2]
[392332187,1761351031762,-400.0,0.00037723,2]
[392332188,1761351031771,-168.0,0.00037723,2]
[392332189,1761351031780,-168.0,0.00037785,2]
[392332190,1761351031789,-600.0,0.00037845,2]
[392332191,1761351031799,-900.0,0.000379,13]
[392332193,1761351031809,-1000.0,0.00037914,2]
[392332195,1761351031819,-2500.0,0.00037914,2]
[392332197,1761351031828,-151.0,0.00037991,2]
[392332199,1761351031838,-151.0,0.00037991,2]
[392332202,1761351031847,-151.0,0.00037991,2]
[392332204,1761351031857,-151.0,0.00037991,2]
[392332206,1761351031866,-151.0,0.00037991,2]
[392332208,1761351031875,-151.0,0.00037991,2]
[392332210,1761351031884,-151.0,0.00037991,2]
[392332212,1761351031894,-151.0,0.00037991,2]
[392332214,1761351031903,-151.0,0.00037991,2]
[392332216,1761351031912,-191.51505329,0.00037991,2]
[392332218,1761351031921,-2010.93,0.00038,38]
[392332220,1761351031931,-634.92,0.00038013,50]
[392332222,1761351031940,-1000.0,0.00038014,2]
[392332224,1761351031950,-113028.99915495,0.00038014,2]
[392332225,1761351031962,-25588.88916812,0.00038014,2]
[392332226,1761351031974,-24660.90456849,0.00038014,2]
[392332227,1761351031989,-29627.10830844,0.00038014,2]
[392332228,1761351031998,-151.0,0.00038068,7]
[392332229,1761351032008,-5000.0,0.00038137,2]
[392332230,1761351032017,-200.0,0.00038185,10]
[392332231,1761351032027,-2153.48390016,0.00038187,2]
[392332232,1761351032036,-159.69123111,0.00038187,15]
[392332233,1761351032046,-872.51242232,0.00038187,10]
[392332234,1761351032055,-150.0,0.0003822,2]
[392332235,1761351032065,-150.0,0.0003822,2]
[392332236,1761351032074,-150.0,0.0003822,2]
[392332237,1761351032084,-500.0,0.00038243,30]
[392332238,1761351032326,-500.0,0.00038245,2]
[392332239,1761351032337,-46549.6669975,0.00038246,3]
[392332240,1761351032347,-224.79821238,0.00038255,30]
[392332241,1761351032357,-500.0,0.00038255,7]
[392332242,1761351032367,-500.0,0.00038255,2]
[392332243,1761351032377,-199.0,0.00038255,7]
[392332244,1761351032386,-150.0,0.00038256,2]
[392332245,1761351032395,-150.0,0.00038256,2]
[392332246,1761351032404,-159.393,0.00038256,2]
[392332247,1761351032414,-572.0,0.00038256,2]
[392332248,1761351032423,-2053.0,0.00038256,2]
[392332249,1761351032433,-3413.0,0.00038256,2]
[392332250,1761351032442,-819.0,0.00038256,2]
[392332251,1761351032451,-1289.17586801,0.00038256,2]
[392332255,1761351037509,-1162.52160585,0.00035713,2]
[392332256,1761351037521,-2506.09710681,0.00035713,2]
[392332257,1761351037532,-2343.46774871,0.00035713,2]
[392332259,1761351039611,-443.91353863,0.00035713,2]
[392332260,1761351039620,-301.82413199,0.00038256,2]
[392332261,1761351039629,-1312.0,0.00038256,2]
[392332262,1761351039639,-606.0,0.00038256,2]
[392332263,1761351039648,-1269.0,0.00038256,2]
[392332264,1761351039658,-818.0,0.00038256,2]
[392332265,1761351039667,-903.0,0.00038256,2]
[392332266,1761351039677,-1185.0,0.00038256,2]
[392332267,1761351039686,-151.0,0.00038287,7]
[392332268,1761351039695,-151.0,0.00038287,7]
[392332269,1761351039705,-15516.5556658,0.00038309,3]
[392332270,1761351039715,-716.90325673,0.00038313,6]
[392332271,1761351039724,-696.48,0.00038322,2]
[392332272,1761351039734,-716.90325673,0.00038326,6]
[392332273,1761351039743,-476.13251256,0.00038336,3]
[392332274,1761351039752,-77582.7783291,0.00038336,3]
[392332275,1761351039762,-151.0,0.00038343,14]
[392332276,1761351039771,-500.0,0.00038345,2]
[392332277,1761351039781,-170682.112324,0.00038346,3]
[392332278,1761351039790,-176428.824074,0.00038346,3]
[392332279,1761351039800,-155.46411154,0.00038353,14]
[392332280,1761351039809,-647.08,0.00038355,7]
[392332281,1761351039819,-500.0,0.00038355,2]
[392332282,1761351039829,-500.0,0.00038355,2]
[392332283,1761351039839,-600.545527,0.00038356,30]
[392332284,1761351039849,-151.258158,0.00038356,30]
[392332285,1761351039858,-181.07057,0.00038356,30]
[392332286,1761351039868,-152.248476,0.00038356,30]
[392332287,1761351039878,-958.708324,0.00038356,30]
[392332288,1761351039888,-500.0,0.00038356,30]
[392332289,1761351039897,-500.0,0.00038356,30]
[392332291,1761351039906,-500.0,0.00038356,30]
[392332293,1761351039915,-671.45,0.00038356,30]
[392332295,1761351039924,-500.0,0.00038356,30]
[392332297,1761351039933,-521.67,0.00038356,30]
[392332299,1761351039942,-500.0,0.00038356,30]
[392332301,1761351039952,-500.0,0.00038356,30]
[392332303,1761351039962,-500.0,0.00038356,30]
[392332305,1761351039971,-500.0,0.00038356,30]
[392332307,1761351039985,-500.0,0.00038356,30]
[392332309,1761351039994,-582.79,0.00038356,30]
[392332311,1761351040003,-500.0,0.00038356,30]
[392332313,1761351040012,-500.0,0.00038356,2]
[392332315,1761351040021,-499.74261036,0.00038356,30]
[392332318,1761351040031,-500.0,0.00038356,30]
[392332320,1761351040040,-500.0,0.00038356,30]
[392332322,1761351040050,-500.0,0.00038356,2]
[392332323,1761351040059,-500.0,0.00038356,30]
[392332326,1761351040069,-500.0,0.00038356,30]
[392332327,1761351040078,-500.0,0.00038356,30]
[392332330,1761351040087,-503.94,0.00038356,30]
[392332332,1761351040096,-563.13,0.00038356,30]
[392332333,1761351040105,-500.0,0.00038356,30]
[392332335,1761351040114,-500.0,0.00038356,30]
[392332337,1761351040123,-500.0,0.00038356,30]
[392332340,1761351040132,-468.24,0.00038356,12]
[392332341,1761351040141,-514.47,0.00038356,30]
[392332344,1761351040150,-500.0,0.00038356,30]
[392332345,1761351040159,-500.0,0.00038356,30]
[392332347,1761351040169,-502.61,0.00038356,30]
[392332350,1761351040179,-308.74805463,0.00038356,30]
[392332352,1761351040188,-500.0,0.00038356,30]
[392332354,1761351040197,-500.0,0.00038356,30]
[392332356,1761351040206,-154.78734336,0.00038356,30]
[392332358,1761351040215,-500.0,0.00038356,30]
[392332360,1761351040226,-500.0,0.00038356,30]
[392332362,1761351040235,-500.0,0.00038356,30]
[392332364,1761351040244,-500.0,0.00038356,30]
[392332366,1761351040253,-500.0,0.00038356,30]
[392332368,1761351040262,-500.0,0.00038356,30]
[392332370,1761351040271,-500.0,0.00038356,30]
[392332371,1761351040280,-500.0,0.00038356,30]
[392332374,1761351040289,-500.0,0.00038356,30]
[392332376,1761351040299,-500.0,0.00038356,30]
[392332378,1761351040308,-500.0,0.00038356,30]
[392332380,1761351040318,-500.0,0.00038356,30]
[392332381,1761351040327,-500.0,0.00038356,30]
[392332384,1761351040337,-500.0,0.00038356,30]
[392332386,1761351040346,-500.0,0.00038356,30]
[392332388,1761351040355,-500.0,0.00038356,30]
[392332390,1761351040364,-500.0,0.00038356,30]
[392332392,1761351040373,-500.0,0.00038356,30]
[392332394,1761351040383,-739.73,0.00038356,30]
[392332396,1761351040392,-500.0,0.00038356,30]
[392332398,1761351040403,-500.0,0.00038356,30]
[392332400,1761351040413,-610.13,0.00038356,30]
[392332402,1761351040423,-500.0,0.00038356,30]
[392332404,1761351040433,-500.0,0.00038356,30]
[392332406,1761351040442,-500.0,0.00038356,30]
[392332408,1761351040452,-500.0,0.00038356,30]
[392332410,1761351040461,-518.6,0.00038356,30]
[392332412,1761351040470,-500.0,0.00038356,30]
[392332414,1761351040481,-500.0,0.00038356,30]
[392332416,1761351040490,-500.0,0.00038356,30]
[392332418,1761351040500,-500.0,0.00038356,30]
[392332420,1761351040509,-500.0,0.00038356,30]
[392332422,1761351040518,-500.0,0.00038356,30]
[392332424,1761351040527,-500.0,0.00038356,30]
[392332426,1761351040537,-500.0,0.00038356,30]
[392332428,1761351040547,-500.0,0.00038356,30]
[392332430,1761351040558,-500.0,0.00038356,30]
[392332432,1761351040567,-709.35,0.00038356,30]
[392332434,1761351040577,-500.0,0.00038356,30]
[392332436,1761351040586,-500.0,0.00038356,30]
[392332438,1761351040595,-347.67403177,0.00038356,30]
[392332440,1761351040604,-500.0,0.00038356,30]
[392332442,1761351040613,-573.48,0.00038356,30]
[392332444,1761351040622,-500.0,0.00038356,30]
[392332446,1761351040631,-500.0,0.00038356,30]
[392332448,1761351040639,-500.0,0.00038356,30]
[392332450,1761351040649,-500.0,0.00038356,30]
[392332452,1761351040658,-500.0,0.00038356,30]
[392332454,1761351040666,-500.0,0.00038356,30]
[392332456,1761351040675,-500.0,0.00038356,30]
[392332458,1761351040684,-500.0,0.00038356,30]
[392332460,1761351040693,-500.0,0.00038356,30]
[392332462,1761351040701,-500.0,0.00038356,30]
[392332464,1761351040710,-500.0,0.00038356,30]
[392332466,1761351040719,-500.0,0.00038356,30]
[392332468,1761351040729,-500.0,0.00038356,30]
[392332470,1761351040739,-500.0,0.00038356,30]
[392332472,1761351040748,-500.0,0.00038356,30]
[392332474,1761351040757,-500.0,0.00038356,30]
[392332476,1761351040766,-500.0,0.00038356,30]
[392332478,1761351040775,-500.0,0.00038356,30]
[392332480,1761351040785,-500.0,0.00038356,30]
[392332482,1761351040794,-500.0,0.00038356,30]
[392332484,1761351040802,-151.0,0.00038356,30]
[392332486,1761351040811,-500.0,0.00038356,30]
[392332488,1761351040821,-500.0,0.00038356,30]
[392332490,1761351040830,-151.0,0.00038356,30]
[392332492,1761351040839,-500.0,0.00038356,30]
[392332494,1761351040848,-500.0,0.00038356,30]
[392332496,1761351040857,-500.0,0.00038356,30]
[392332498,1761351040866,-153.04558204,0.00038356,30]
[392332500,1761351040876,-500.0,0.00038356,30]
[392332502,1761351040886,-500.0,0.00038356,30]
[392332504,1761351040895,-152.72648808,0.00038356,30]
[392332505,1761351040904,-771.22,0.00038356,30]
[392332506,1761351040913,-1837.41,0.00038356,2]
[392332507,1761351040922,-500.0,0.00038356,30]
[392332508,1761351040930,-500.0,0.00038356,30]
[392332509,1761351040939,-500.0,0.00038356,30]
[392332510,1761351040949,-500.0,0.00038356,30]
[392332511,1761351040958,-500.0,0.00038356,30]
[392332512,1761351040969,-500.0,0.00038356,30]
[392332513,1761351040979,-500.0,0.00038356,30]
[392332514,1761351040991,-500.0,0.00038356,30]
[392332515,1761351041001,-500.0,0.00038356,30]
[392332516,1761351041010,-500.0,0.00038356,30]
[392332517,1761351041019,-500.0,0.00038356,30]
[392332518,1761351041028,-263.56256227,0.00038356,30]
[392332519,1761351041037,-500.0,0.00038356,30]
[392332520,1761351041047,-500.0,0.00038356,30]
[392332521,1761351041056,-500.0,0.00038356,30]
[392332522,1761351041065,-381.21973835,0.00038356,30]
[392332540,1761351042507,-1000.0,0.00037914,2]
[392332541,1761351042517,-118.78026165,0.00038356,30]
[392332542,1761351042527,-324.1333068,0.00038356,30]
[392332551,1761351533471,-154.03,0.00018457,2]
[392332552,1761351533494,-77.97039472,0.00019428,2]
[392332553,1761351548503,-217.36628832,0.00018695,2]
[392332554,1761351550671,-192.31659931,0.00018695,2]
[392332555,1761351552768,-215.90377252,0.00018695,2]
[392332556,1761351557181,-164.56674478,0.00018695,2]
[392332557,1761351559619,-475.57250491,0.00018695,2]
[392332558,1761351561131,-324.79029443,0.00018695,2]
[392332559,1761351578407,-215.78852907,0.00018695,2]
[392332560,1761351581668,-214.38168491,0.00018695,2]
[392332561,1761351583302,-168.27315177,0.00018695,2]
[392332562,1761351584843,-244.08025378,0.00018695,2]
[392332563,1761351586354,-165.7930362,0.00018695,2]
[392332564,1761351589109,-266.18502545,0.00018695,2]
[392332565,1761351592786,-152.43819802,0.00018695,2]
[392332566,1761351608422,-459.21625986,0.00018695,2]
[392332567,1761351614344,-219.52664832,0.00018695,2]
[392332568,1761351615960,-172.05707931,0.00018695,2]
[392332569,1761351617590,-300.0,0.00018695,2]
[392332570,1761351620874,-187.61285694,0.00018695,2]
[392332571,1761351907448,5722.6673013,0.00015,2]
[392332572,1761351907471,6210.29463404,0.00015,2]
[392332573,1761351907505,6210.29463404,0.00015,2]
[392332574,1761351907532,6210.29463404,0.00015,2]
[392332575,1761351907556,6210.29463404,0.00015,2]
[392332576,1761351907579,6210.29463404,0.00015,2]
[392332577,1761351907602,6210.29463404,0.00015,2]
[392332578,1761351907625,6210.29463404,0.00015,2]
[392332579,1761351907648,6210.29463404,0.00015,2]
[392332580,1761351907671,6210.29463404,0.00015,2]
[392332581,1761351907701,2867527.04070395,0.00015,2]
[392332582,1761351908064,-10.83830716,0.00018695,2]
[392332583,1761351908088,-154.48240415,0.00019061,2]
[392332584,1761351909643,-132.56289587,0.00019061,2]
[392332585,1761351909668,-58.91388772,0.00019428,2]
[392332586,1761351924277,366.13421041,0.000108,2]
[392332588,1761351934678,1098.85001053,9e-05,2]
[392332589,1761351960544,1340.90865414,8e-05,2]
[392332594,1761352073994,2646939.30705005,0.00015,2]
[392332596,1761352087953,412.41624996,0.0001439,2]
[392332600,1761352101627,23169.42434898,0.00015,2]
[392332605,1761352119692,887.79868322,0.0001,2]
[392332606,1761352120292,2081.46224761,0.00015,2]
[392332608,1761352122772,955.041594,0.00013699,2]
[392332609,1761352194132,-162.5574447,0.00018695,2]
[392332610,1761352197498,-154.38627395,0.00018695,2]
[392332611,1761352201265,-412.92623101,0.00018695,2]
[392332612,1761352204486,-273.13676899,0.00018695,2]
[392332614,1761352223402,-332.17040398,0.00018686,2]
[392332615,1761352226457,-200.0,0.00018686,2]
[392332616,1761352228496,-297.3739501,0.00018678,2]
[392332623,1761352231586,-5502.6260499,0.00018678,2]
[392332624,1761352231596,-5267.82959602,0.00018686,2]
[392332625,1761352231606,-4796.99328135,0.00018695,2]
[392332626,1761352231615,-17.14571756,0.00019428,2]
[392332627,1761352231624,-154.03,0.00020399,2]
[392332628,1761352231634,-250.0,0.00020564,2]
[392332629,1761352231644,-231.99223229,0.00020564,2]
[392332630,1761352231654,-154.03,0.00021371,2]
[392332631,1761352231663,-1396.36027564,0.00021371,2]
[392332632,1761352231673,-39.18102497,0.00021371,2]
[392332633,1761352231698,-113.25717305,0.00021371,2]
[392332634,1761352231712,-154.03,0.00022342,2]
[392332635,1761352231721,-57.13531885,0.00023314,2]
[392332636,1761352231869,-96.89468115,0.00023314,2]
[392332637,1761352231879,-154.03,0.00024285,2]
[392332638,1761352231888,-154.03,0.00025256,2]
[392332639,1761352231897,-154.03,0.00026228,2]
[392332640,1761352231906,-154.03,0.00027199,2]
[392332641,1761352231915,-600.0,0.00027397,2]
[392332642,1761352231926,-573.42919894,0.00027397,2]
[392332644,1761352231935,-1235.99408,0.00027424,2]
[392332646,1761352231946,-600.0,0.00027452,2]
[392332648,1761352231955,-600.0,0.00027507,2]
[392332650,1761352231964,-600.0,0.00027562,2]
[392332652,1761352231974,-600.0,0.00027617,2]
[392332653,1761352231982,-600.0,0.00027672,2]
[392332654,1761352231992,-600.0,0.00027727,2]
[392332655,1761352232001,-600.0,0.00027782,2]
[392332656,1761352232010,-600.0,0.00027837,2]
[392332657,1761352232021,-600.0,0.00027892,2]
[392332658,1761352232032,-600.0,0.00027947,2]
[392332659,1761352232042,-600.0,0.00028002,2]
[392332660,1761352232051,-600.0,0.00028057,2]
[392332661,1761352232061,-600.0,0.00028112,2]
[392332663,1761352232070,-600.0,0.00028167,2]
[392332665,1761352232079,-154.03,0.00028171,2]
[392332666,1761352232089,-600.0,0.00028222,2]
[392332667,1761352232098,-600.0,0.00028277,2]
[392332668,1761352232107,-600.0,0.00028332,2]
[392332669,1761352232118,-311.31,0.00028669,2]
[392332670,1761352232127,-322.4,0.00028696,2]
[392332671,1761352232136,-154.03,0.00029142,2]
[392332672,1761352232146,-311.31,0.00029744,2]
[392332673,1761352232155,-154.03,0.00030113,2]
[392332674,1761352232164,-311.31,0.00030819,2]
[392332675,1761352232174,-154.03,0.00031085,2]
[392332676,1761352232183,-300.0,0.0003131,7]
[392332677,1761352232193,-311.31,0.00031894,2]
[392332678,1761352232202,-154.03,0.00032056,2]
[392332679,1761352232211,-166.67,0.00032427,2]
[392332680,1761352232221,-311.31,0.00032969,2]
[392332681,1761352232231,-154.03,0.00033028,2]
[392332682,1761352232240,-173.01932563,0.00033665,2]
[392332683,1761352232249,-4432.28877188,0.00033665,2]
[392332684,1761352232259,-501.50409306,0.00033708,2]
[392332685,1761352232268,-226.02260155,0.00033745,2]
[392332686,1761352232278,-280.80857607,0.00033764,7]
[392332687,1761352232287,-507.936,0.00033764,36]
[392332688,1761352232296,-500.0,0.00033764,2]
[392332689,1761352232307,-794.63321811,0.00033765,2]
[392332690,1761352232316,-19097.40079991,0.00033765,2]
[392332691,1761352232328,-86311.50063139,0.00033765,2]
[392332692,1761352232339,-60435.4448027,0.00033765,2]
[392332693,1761352232349,-30362.51781184,0.00033765,2]
[392332694,1761352232361,-1254.41808677,0.00033765,2]
[392332695,1761352237594,-3174.52941022,0.00033765,2]
[392332696,1761352237606,-2247.32287493,0.00033765,2]
[392332697,1761352237652,-1275.99238467,0.00033765,2]
[392332700,1761352240153,-1.6e-07,0.00033765,2]
[392332701,1761352240166,-48703.87829871,0.00033765,2]
[392332702,1761352240176,-500.76547992,0.00033773,5]
[392332703,1761352240186,-517.37453729,0.00033773,2]
[392332704,1761352240196,-500.0,0.00033773,5]
[392332705,1761352240207,-483.35601814,0.00033773,5]
[392332706,1761352240217,-500.0,0.00033773,5]
[392332707,1761352240226,-154.03,0.00033999,2]
[392332708,1761352240236,-1000.0,0.00034321,5]
[392332709,1761352240245,-1000.0,0.00034321,5]
[392332710,1761352240255,-4432.2887718,0.00034391,2]
[392332711,1761352240264,-818.91738648,0.00034868,5]
[392332712,1761352240275,-576.75755326,0.00034868,5]
[392332713,1761352240285,-154.03,0.0003497,2]
[392332714,1761352240294,-150.0,0.00035,30]
[392332715,1761352240304,-150.0,0.00035014,7]
[392332716,1761352240314,-166.67,0.00035103,2]
[392332717,1761352240323,-4432.2887718,0.00035117,2]
[392332718,1761352240333,-635.74691951,0.00035598,2]
[392332719,1761352240342,-168.0,0.00035698,2]
[392332720,1761352240351,-500.0,0.00035793,5]
[392332721,1761352240360,-500.0,0.00035793,5]
[392332722,1761352240370,-500.0,0.00035793,5]
[392332723,1761352240379,-500.0,0.00035793,5]
[392332724,1761352240388,-4432.2887718,0.00035844,2]
[392332725,1761352240397,-154.03,0.00035942,2]
[392332726,1761352240407,-476.35224409,0.00036226,2]
[392332727,1761352240416,-819.0,0.00036277,2]
[392332728,1761352240426,-2053.0,0.00036277,2]
[392332729,1761352240435,-3487.0,0.00036277,2]
[392332730,1761352240444,-1000.0,0.00036341,5]
[392332731,1761352240453,-1000.0,0.00036341,5]
[392332732,1761352240463,-152.0,0.00036483,3]
[392332733,1761352240472,-4432.2887718,0.0003657,2]
[392332734,1761352240481,-159.69123113,0.00036701,15]
[392332735,1761352240490,-635.74691946,0.00036784,2]
[392332736,1761352240500,-151.0,0.00036798,14]
[392332737,1761352240509,-324122.62780671,0.00036801,2]
[392332738,1761352240519,-1372.83557782,0.00036801,2]
[392332739,1761352240528,-16238.6216119,0.00036801,7]
[392332740,1761352240538,-26000.52995811,0.00036801,7]
[392332741,1761352240547,-2321.2850679,0.00036801,2]
[392332742,1761352240556,-62054.12696931,0.00036801,2]
[392332746,1761352242736,-885.88840242,0.00036701,9]
[392332747,1761352242746,-12130.43108083,0.00036801,2]
[392332748,1761352242958,-487.477772,0.00036801,2]
[392332749,1761352243015,-963.6918847,0.00036801,2]
[392332751,1761352245698,-4996.95637381,0.00036801,2]
[392332752,1761352245711,-371.681602,0.00036801,2]
[392332753,1761352245727,-2396.26202419,0.00036801,2]
[392332754,1761352245758,-3552.96164974,0.00036801,2]
[392332763,1761352253377,-455.18897754,0.00018669,2]
[392332764,1761352256080,-167.50110115,0.00018669,2]
[392332765,1761352259965,-155.56368894,0.00018669,2]
[392332766,1761352262093,-154.77999984,0.00018669,2]
[392332767,1761352264866,-229.71800161,0.00018669,2]
[392332768,1761352266522,-299.48116592,0.00018669,2]
[392332769,1761352268543,-266.03070622,0.00018669,2]
[392332770,1761352272039,-283.0,0.00018669,2]
[392332771,1761352274186,-199.09074677,0.00018661,2]
[392332772,1761352275700,-328.110072,0.00018661,2]
[392332773,1761352279944,-202.6364642,0.00018661,2]
[392332774,1761352281922,-271.02027824,0.00018661,2]
[392332775,1761352298953,-281.5440918,0.00018661,2]
[392332776,1761352301892,-308.52708614,0.00018661,2]
[392332777,1761352304058,-176.94553899,0.00018661,2]
[392332778,1761352306109,-235.86690458,0.00018661,2]
[392332779,1761352310308,-222.8540575,0.00018661,2]
[392332780,1761352312792,-303.98084786,0.00018661,2]
[392332781,1761352328458,-198.85070738,0.00018661,2]
[392332782,1761352332224,-196.01915214,0.00018661,2]
[392332783,1761352335497,-153.82597722,0.00018661,2]
[392332784,1761352337753,174.7945346,0.00036801,120]
[392332785,1761352338142,-324.69683298,0.00018661,2]
[392332786,1761352342655,-392.35269397,0.00018661,2]
[392332787,1761352345572,-304.60073431,0.00018661,2]
[392332788,1761352349208,-161.0,0.00018661,2]
[392332789,1761352352475,-176.12049052,0.00018661,2]
[392332790,1761352354535,-286.29908622,0.00018661,2]
[392332791,1761352356548,-178.92544117,0.00018661,2]
[392332792,1761352373654,-166.66666668,0.00018569,2]
[392332793,1761352373681,-39.58566607,0.00018661,2]
[392332794,1761352376485,-227.50934178,0.00018569,2]
[392332795,1761352379874,-45.33854841,0.00018569,2]
[392332796,1761352379895,-253.25611278,0.00018661,2]
[392332797,1761352385097,-221.58844979,0.00018661,2]
[392332798,1761352389791,-234.80105439,0.00018661,2]
[392332801,1761352393237,-147.50151298,0.00018661,2]
[392332802,1761352393258,-26.59743263,0.00018669,2]
[392332803,1761352394764,-246.25045756,0.00018669,2]
[392332804,1761352394784,-88.32956128,0.00018669,2]
[392332805,1761352397376,-184.51832891,0.00018669,2]
[392332806,1761352397398,-136.42997229,0.00018669,2]
[392332807,1761352400122,-242.90718025,0.00018669,2]
[392332808,1761352418457,-226.08409319,0.00018669,2]
[392332809,1761352420255,-172.04064478,0.00018669,2]
[392332811,1761352423666,-157.02636283,0.00018669,2]
[392332812,1761352426973,-151.02551,0.00018669,2]
[392332813,1761352432719,-656.64118428,0.00018669,2]
[392332814,1761352440202,-365.1630615,0.00018669,2]
[392332815,1761352443305,-182.29466427,0.00018669,2]
[392332816,1761352446313,-175.5527562,0.00018669,2]
[392332817,1761352448251,-227.46606587,0.00018669,2]
[392332819,1761352450341,-233.31525519,0.00018669,2]
[392332820,1761352451935,-154.40674501,0.00018669,2]
[392332821,1761352454088,-167.8269976,0.00018669,2]
[392332822,1761352459553,-206.00759732,0.00018669,2]
[392332825,1761352480115,-246.99240268,0.00018669,2]
[392332838,1761352629536,-302.0,0.00018661,2]
[392332839,1761352633589,-165.35336065,0.00018661,2]
[392332840,1761352636245,-225.15136936,0.00018661,2]
[392332841,1761352638306,-282.99999984,0.00018661,2]
[392332842,1761352639899,-156.58119535,0.00018661,2]
[392332843,1761352642059,-207.11704356,0.00018661,2]
[392332844,1761352658751,-241.49313304,0.00018661,2]
[392332845,1761352660916,-207.86173315,0.00018661,2]
[392332846,1761352663283,-338.03571405,0.00018661,2]
[392332847,1761352665147,-284.40820052,0.00018661,2]
[392332848,1761352666708,-203.31234584,0.00018661,2]
[392332849,1761352669453,-233.99785473,0.00018661,2]
[392332850,1761352671007,-357.0750483,0.00018661,2]
[392332851,1761352688527,-178.17581987,0.00018661,2]
[392332852,1761352692369,-272.18806479,0.00018661,2]
[392332853,1761352693860,-388.798108,0.00018661,2]
[392332854,1761352696342,-215.60634023,0.00018661,2]
[392332855,1761352698560,-200.82616513,0.00018661,2]
[392332856,1761352700713,-283.88777509,0.0001866,2]
[392332857,1761352702702,-170.55962723,0.0001866,2]
[392332858,1761352708745,-4000.0,0.0001866,2]
[392332859,1761352709340,-388.69422709,0.0001866,2]
[392332860,1761352710378,-4000.0,0.0001866,2]
[392332861,1761352710949,-284.56512091,0.0001866,2]
[392332862,1761352712554,-296.71355963,0.00018569,2]
[392332863,1761352716701,-179.50218907,0.00018569,2]
[392332864,1761352733389,-515.97359416,0.00018476,2]
[392332865,1761352734892,-301.22351527,0.00018476,2]